[Event "Live Chess"]
[Site "Chess.com"]
[Date "2023.05.21"]
[Round "-"]
[White "Ferrarifan27"]
[Black "EPotapov05"]
[Result "1-0"]
[WhiteElo "2074"]
[BlackElo "1393"]
[TimeControl "300"]
[EndTime "0:56:27 PDT"]
[Termination "Ferrarifan27 won by resignation"]

1. e4 {[%clk 0:04:59.2]} 1... e6 {[%clk 0:04:56.8]} 2. d4 {[%clk 0:04:57.8]}
2... d5 {[%clk 0:04:56]} 3. Nc3 {[%clk 0:04:55.8]} 3... Nf6 {[%clk 0:04:54.1]}
4. Bg5 {[%clk 0:04:53.7]} 4... Be7 {[%clk 0:04:52.6]} 5. e5 {[%clk 0:04:52.3]}
5... Nfd7 {[%clk 0:04:51.5]} 6. h4 {[%clk 0:04:51]} 6... Bxg5 {[%clk 0:04:49.2]}
7. hxg5 {[%clk 0:04:50.2]} 7... Qxg5 {[%clk 0:04:49]} 8. Nf3 {[%clk 0:04:49.6]}
8... Qe7 {[%clk 0:04:47.4]} 9. Bd3 {[%clk 0:04:41.5]} 9... g6 {[%clk 0:04:38.8]}
10. Qd2 {[%clk 0:04:33]} 10... Nc6 {[%clk 0:04:35.1]} 11. Nb5 {[%clk 0:04:30.7]}
11... Nb6 {[%clk 0:04:33.3]} 12. Qh6 {[%clk 0:04:27.8]} 12... a6 {[%clk
0:04:26.1]} 13. Qg7 {[%clk 0:04:26.5]} 13... Rf8 {[%clk 0:04:24]} 14. Nc3 {[%clk
0:04:23.8]} 14... Bd7 {[%clk 0:04:22]} 15. Rxh7 {[%clk 0:04:21]} 15... O-O-O
{[%clk 0:04:20.5]} 16. O-O-O {[%clk 0:04:16]} 16... Rde8 {[%clk 0:04:13.8]} 17.
Rdh1 {[%clk 0:04:13.6]} 17... Nd8 {[%clk 0:04:12.9]} 18. Rh8 {[%clk 0:04:05]}
18... Rxh8 {[%clk 0:04:04.9]} 19. Rxh8 {[%clk 0:04:04.9]} 19... Rxh8 {[%clk
0:04:03.4]} 20. Qxh8 {[%clk 0:04:04.6]} 20... Qe8 {[%clk 0:04:02.7]} 21. Qxe8
{[%clk 0:03:56.2]} 21... Bxe8 {[%clk 0:04:01.5]} 22. Ng5 {[%clk 0:03:54.8]}
22... Nc6 {[%clk 0:03:58]} 23. Ne2 {[%clk 0:03:52.1]} 23... Ne7 {[%clk
0:03:41.5]} 24. c3 {[%clk 0:03:49]} 24... Nf5 {[%clk 0:03:35.7]} 25. Bxf5 {[%clk
0:03:44.8]} 25... gxf5 {[%clk 0:03:34.8]} 26. Nf4 {[%clk 0:03:38.4]} 26... Kd8
{[%clk 0:03:31.9]} 27. b3 {[%clk 0:03:33.4]} 27... Ke7 {[%clk 0:03:29.4]} 28.
Kd2 {[%clk 0:03:30.1]} 28... Nd7 {[%clk 0:03:28.4]} 29. Ke3 {[%clk 0:03:25.2]}
29... Nf8 {[%clk 0:03:22.5]} 30. c4 {[%clk 0:03:18.2]} 30... c6 {[%clk
0:03:18.6]} 31. c5 {[%clk 0:03:08.8]} 31... Ng6 {[%clk 0:03:16.7]} 32. Nxg6+
{[%clk 0:03:04]} 32... fxg6 {[%clk 0:03:16]} 33. f4 {[%clk 0:03:03]} 33... Bd7
{[%clk 0:03:03.5]} 34. Kf3 {[%clk 0:02:56.2]} 34... Kf8 {[%clk 0:02:57]} 35. Kg3
{[%clk 0:02:54.8]} 35... Kg7 {[%clk 0:02:56.1]} 36. Kh4 {[%clk 0:02:53.3]} 36...
Bc8 {[%clk 0:02:54.9]} 37. Nf3 {[%clk 0:02:51.1]} 37... Bd7 {[%clk 0:02:47.6]}
38. Kg5 {[%clk 0:02:49.7]} 38... Bc8 {[%clk 0:02:46.1]} 39. Nh4 {[%clk
0:02:48.7]} 1-0

[Event "Live Chess"]
[Site "Chess.com"]
[Date "2023.05.21"]
[Round "-"]
[White "quantum_void"]
[Black "Hacker_2009"]
[Result "0-1"]
[WhiteElo "1505"]
[BlackElo "1909"]
[TimeControl "300"]
[EndTime "0:56:38 PDT"]
[Termination "Hacker_2009 won by resignation"]

1. e4 {[%clk 0:04:57]} 1... c5 {[%clk 0:04:58.1]} 2. Nf3 {[%clk 0:04:56.2]} 2...
d6 {[%clk 0:04:56.9]} 3. Bc4 {[%clk 0:04:53.8]} 3... e6 {[%clk 0:04:53.9]} 4.
O-O {[%clk 0:04:53]} 4... Nf6 {[%clk 0:04:53.5]} 5. Nc3 {[%clk 0:04:50.7]} 5...
Be7 {[%clk 0:04:52.6]} 6. Bb5+ {[%clk 0:04:48.3]} 6... Bd7 {[%clk 0:04:51.5]} 7.
a4 {[%clk 0:04:44.9]} 7... a6 {[%clk 0:04:50]} 8. Bxd7+ {[%clk 0:04:43]} 8...
Qxd7 {[%clk 0:04:49.3]} 9. d4 {[%clk 0:04:41]} 9... cxd4 {[%clk 0:04:48.2]} 10.
Nxd4 {[%clk 0:04:40.1]} 10... O-O {[%clk 0:04:47.7]} 11. f4 {[%clk 0:04:37.8]}
11... Nc6 {[%clk 0:04:46.6]} 12. Nf3 {[%clk 0:04:29.2]} 12... Rfd8 {[%clk
0:04:43.4]} 13. Qe2 {[%clk 0:04:26.4]} 13... Qc7 {[%clk 0:04:40.6]} 14. Be3
{[%clk 0:04:21.6]} 14... d5 {[%clk 0:04:37.9]} 15. e5 {[%clk 0:04:19.8]} 15...
Nd7 {[%clk 0:04:34.9]} 16. Nd4 {[%clk 0:04:12.2]} 16... Nxd4 {[%clk 0:04:32.8]}
17. Bxd4 {[%clk 0:04:11]} 17... Bc5 {[%clk 0:04:31.7]} 18. Qd3 {[%clk
0:04:00.8]} 18... Qb6 {[%clk 0:04:29.3]} 19. Bxc5 {[%clk 0:03:53.3]} 19... Nxc5
{[%clk 0:04:26.8]} 20. Qe3 {[%clk 0:03:37.5]} 20... d4 {[%clk 0:04:24]} 0-1

[Event "Live Chess"]
[Site "Chess.com"]
[Date "2023.05.21"]
[Round "-"]
[White "OleksiyJr1"]
[Black "maxwalden"]
[Result "0-1"]
[WhiteElo "965"]
[BlackElo "1213"]
[TimeControl "300"]
[EndTime "0:56:45 PDT"]
[Termination "maxwalden won by checkmate"]

1. e4 {[%clk 0:04:57.9]} 1... c5 {[%clk 0:04:55.6]} 2. Nf3 {[%clk 0:04:55.4]}
2... d6 {[%clk 0:04:51.9]} 3. Nc3 {[%clk 0:04:54.8]} 3... Nf6 {[%clk 0:04:50]}
4. d4 {[%clk 0:04:54.3]} 4... cxd4 {[%clk 0:04:48.8]} 5. Qxd4 {[%clk 0:04:53.3]}
5... g6 {[%clk 0:04:48.3]} 6. Be3 {[%clk 0:04:49.7]} 6... Bg7 {[%clk 0:04:47.4]}
7. Qd3 {[%clk 0:04:47.3]} 7... O-O {[%clk 0:04:45.6]} 8. Be2 {[%clk 0:04:43]}
8... Nc6 {[%clk 0:04:42.8]} 9. O-O {[%clk 0:04:41.8]} 9... a6 {[%clk 0:04:41.2]}
10. Nd5 {[%clk 0:04:40.4]} 10... Nxd5 {[%clk 0:04:38.4]} 11. Qxd5 {[%clk
0:04:39]} 11... Bxb2 {[%clk 0:04:30.8]} 12. Rab1 {[%clk 0:04:36.8]} 12... Bg7
{[%clk 0:04:28.6]} 13. Bd4 {[%clk 0:04:34.5]} 13... Nxd4 {[%clk 0:04:24.8]} 14.
Nxd4 {[%clk 0:04:34.4]} 14... Bxd4 {[%clk 0:04:23.2]} 15. Qxd4 {[%clk
0:04:32.3]} 15... b5 {[%clk 0:04:21.7]} 16. f3 {[%clk 0:04:26.5]} 16... Bb7
{[%clk 0:04:20.8]} 17. Rfd1 {[%clk 0:04:11.9]} 17... e5 {[%clk 0:04:19.6]} 18.
Qxd6 {[%clk 0:04:06.8]} 18... Qxd6 {[%clk 0:04:18.7]} 19. Rxd6 {[%clk
0:04:06.2]} 19... Rfd8 {[%clk 0:04:17.6]} 20. Rxd8+ {[%clk 0:04:05]} 20... Rxd8
{[%clk 0:04:17.5]} 21. Rd1 {[%clk 0:04:03.4]} 21... Rxd1+ {[%clk 0:04:15.8]} 22.
Bxd1 {[%clk 0:04:03.3]} 22... a5 {[%clk 0:04:13.3]} 23. Be2 {[%clk 0:04:01.5]}
23... b4 {[%clk 0:04:12.2]} 24. Kf1 {[%clk 0:03:58.4]} 24... Bc8 {[%clk
0:04:10.9]} 25. Ke1 {[%clk 0:03:56]} 25... Be6 {[%clk 0:04:10]} 26. Bb5 {[%clk
0:03:50.8]} 26... Bxa2 {[%clk 0:04:07.7]} 27. Kd2 {[%clk 0:03:50.2]} 27... b3
{[%clk 0:04:05.9]} 28. cxb3 {[%clk 0:03:49.3]} 28... Bxb3 {[%clk 0:04:05]} 29.
Kc3 {[%clk 0:03:48.9]} 29... a4 {[%clk 0:04:04.1]} 30. Kb2 {[%clk 0:03:47.1]}
30... f5 {[%clk 0:04:00.4]} 31. exf5 {[%clk 0:03:44.8]} 31... gxf5 {[%clk
0:04:00.3]} 32. Ka3 {[%clk 0:03:43.1]} 32... e4 {[%clk 0:03:52.9]} 33. Bxa4
{[%clk 0:03:40]} 33... Bxa4 {[%clk 0:03:51.3]} 34. Kxa4 {[%clk 0:03:39.9]} 34...
e3 {[%clk 0:03:50.7]} 35. Kb3 {[%clk 0:03:38]} 35... e2 {[%clk 0:03:50.1]} 36.
Kc2 {[%clk 0:03:37.5]} 36... e1=Q {[%clk 0:03:49.2]} 37. Kd3 {[%clk 0:03:37.4]}
37... Qh4 {[%clk 0:03:47.7]} 38. Ke2 {[%clk 0:03:36.3]} 38... Qxh2 {[%clk
0:03:46.8]} 39. Kf2 {[%clk 0:03:35.4]} 39... Qe5 {[%clk 0:03:45.3]} 40. g3
{[%clk 0:03:34.5]} 40... h5 {[%clk 0:03:44.2]} 41. Kg2 {[%clk 0:03:34.4]} 41...
f4 {[%clk 0:03:42.9]} 42. Kh3 {[%clk 0:03:34.3]} 42... fxg3 {[%clk 0:03:41.7]}
43. f4 {[%clk 0:03:33.3]} 43... Qxf4 {[%clk 0:03:37.6]} 44. Kg2 {[%clk
0:03:32.9]} 44... Qf2+ {[%clk 0:03:36.7]} 45. Kh3 {[%clk 0:03:32.8]} 45... Qh2#
{[%clk 0:03:35.7]} 0-1

[Event "Live Chess"]
[Site "Chess.com"]
[Date "2023.05.21"]
[Round "-"]
[White "matt1979"]
[Black "ranvir123"]
[Result "1-0"]
[WhiteElo "1538"]
[BlackElo "923"]
[TimeControl "300"]
[EndTime "0:56:54 PDT"]
[Termination "matt1979 won by checkmate"]

1. f4 {[%clk 0:04:58.7]} 1... e5 {[%clk 0:04:55.2]} 2. fxe5 {[%clk 0:04:57.1]}
2... d6 {[%clk 0:04:45.8]} 3. exd6 {[%clk 0:04:55.9]} 3... Qxd6 {[%clk
0:04:44.2]} 4. Nf3 {[%clk 0:04:53.8]} 4... Nf6 {[%clk 0:04:42.6]} 5. d4 {[%clk
0:04:46.5]} 5... Nc6 {[%clk 0:04:38.8]} 6. c3 {[%clk 0:04:41.5]} 6... Bg4 {[%clk
0:04:35.8]} 7. Qd3 {[%clk 0:04:38.3]} 7... O-O-O {[%clk 0:04:12]} 8. g3 {[%clk
0:04:25.6]} 8... Bxf3 {[%clk 0:04:09.7]} 9. Qxf3 {[%clk 0:04:22]} 9... g6 {[%clk
0:03:48.7]} 10. Bg2 {[%clk 0:04:18.5]} 10... Bg7 {[%clk 0:03:46.3]} 11. O-O
{[%clk 0:04:15.1]} 11... Rhe8 {[%clk 0:03:30.5]} 12. Bf4 {[%clk 0:04:07.6]}
12... Qd5 {[%clk 0:03:17.9]} 13. Qf2 {[%clk 0:03:45.9]} 13... Qf5 {[%clk
0:02:26.2]} 14. Bxc6 {[%clk 0:03:37.4]} 14... bxc6 {[%clk 0:02:23.7]} 15. Qg2
{[%clk 0:03:25.2]} 15... Qc2 {[%clk 0:02:15.5]} 16. Qxc6 {[%clk 0:03:14.1]}
16... Rxe2 {[%clk 0:01:55.5]} 17. Qxc7# {[%clk 0:03:11.9]} 1-0

[Event "Live Chess"]
[Site "Chess.com"]
[Date "2023.05.21"]
[Round "-"]
[White "horsechessnut"]
[Black "EdenHazard8"]
[Result "0-1"]
[WhiteElo "1473"]
[BlackElo "1961"]
[TimeControl "300"]
[EndTime "0:56:55 PDT"]
[Termination "EdenHazard8 won by checkmate"]

1. e4 {[%clk 0:04:54.4]} 1... c6 {[%clk 0:04:59.9]} 2. Nf3 {[%clk 0:04:51.4]}
2... d5 {[%clk 0:04:59.8]} 3. exd5 {[%clk 0:04:47.2]} 3... cxd5 {[%clk
0:04:59.7]} 4. d4 {[%clk 0:04:46.3]} 4... Nf6 {[%clk 0:04:59.5]} 5. Bf4 {[%clk
0:04:43]} 5... Nc6 {[%clk 0:04:59.4]} 6. Nbd2 {[%clk 0:04:40.5]} 6... Bg4 {[%clk
0:04:57.8]} 7. Be2 {[%clk 0:04:39.1]} 7... e6 {[%clk 0:04:56.6]} 8. O-O {[%clk
0:04:36]} 8... Bd6 {[%clk 0:04:54.9]} 9. Ne5 {[%clk 0:04:28.9]} 9... Bxe2 {[%clk
0:04:52.5]} 10. Qxe2 {[%clk 0:04:27.3]} 10... Nxd4 {[%clk 0:04:51.6]} 11. Qd3
{[%clk 0:04:17.4]} 11... Nc6 {[%clk 0:04:48.9]} 12. Qb5 {[%clk 0:04:09.5]} 12...
Rc8 {[%clk 0:04:44.6]} 13. Ndf3 {[%clk 0:04:04.7]} 13... O-O {[%clk 0:04:41.1]}
14. Bg3 {[%clk 0:03:59.8]} 14... Ne4 {[%clk 0:04:38]} 15. Nxc6 {[%clk
0:03:43.2]} 15... bxc6 {[%clk 0:04:37.9]} 16. Qa4 {[%clk 0:03:34.8]} 16... Nxg3
{[%clk 0:04:35.2]} 17. hxg3 {[%clk 0:03:32.7]} 17... Qf6 {[%clk 0:04:30.7]} 18.
Rab1 {[%clk 0:03:26.2]} 18... c5 {[%clk 0:04:29]} 19. Qxa7 {[%clk 0:03:20.9]}
19... Ra8 {[%clk 0:04:27.6]} 20. Qb6 {[%clk 0:03:19.8]} 20... Qe7 {[%clk
0:04:26.2]} 21. a3 {[%clk 0:03:17.4]} 21... Rfb8 {[%clk 0:04:22.6]} 22. Qc6
{[%clk 0:03:09.3]} 22... Ra5 {[%clk 0:04:07.9]} 23. Rfe1 {[%clk 0:02:58.7]}
23... c4 {[%clk 0:04:04.7]} 24. b4 {[%clk 0:02:43.4]} 24... cxb3 {[%clk
0:04:02.2]} 25. cxb3 {[%clk 0:02:33.1]} 25... Rxa3 {[%clk 0:04:01.1]} 26. Qc2
{[%clk 0:02:25.9]} 26... Qb7 {[%clk 0:03:58.5]} 27. Re3 {[%clk 0:02:22.5]} 27...
Rc8 {[%clk 0:03:56.7]} 28. Qd1 {[%clk 0:02:19.9]} 28... Ra2 {[%clk 0:03:53.3]}
29. Ng5 {[%clk 0:02:05.5]} 29... h6 {[%clk 0:03:49.2]} 30. Nf3 {[%clk 0:02:04]}
30... Rcc2 {[%clk 0:03:47.3]} 31. Ne1 {[%clk 0:01:48.2]} 31... Rxf2 {[%clk
0:03:36.7]} 32. Rc3 {[%clk 0:01:35.5]} 32... Qb6 {[%clk 0:03:28.3]} 33. Qd3
{[%clk 0:01:30.8]} 33... Rxg2+ {[%clk 0:03:26.9]} 34. Kh1 {[%clk 0:01:22.4]}
34... Rh2# {[%clk 0:03:25.6]} 0-1

[Event "Live Chess"]
[Site "Chess.com"]
[Date "2023.05.21"]
[Round "-"]
[White "diana21strabt"]
[Black "AttackingSnowLeopard"]
[Result "0-1"]
[WhiteElo "1719"]
[BlackElo "2201"]
[TimeControl "300"]
[EndTime "0:57:24 PDT"]
[Termination "AttackingSnowLeopard won by resignation"]

1. e4 {[%clk 0:04:56.7]} 1... c6 {[%clk 0:04:58.5]} 2. d4 {[%clk 0:04:55.4]}
2... d5 {[%clk 0:04:58.2]} 3. Nc3 {[%clk 0:04:39.4]} 3... dxe4 {[%clk
0:04:56.5]} 4. Nxe4 {[%clk 0:04:38.2]} 4... Nf6 {[%clk 0:04:56.1]} 5. Nxf6+
{[%clk 0:04:36.4]} 5... exf6 {[%clk 0:04:56]} 6. Bc4 {[%clk 0:04:35.2]} 6... Bd6
{[%clk 0:04:55.1]} 7. Nf3 {[%clk 0:04:31.3]} 7... O-O {[%clk 0:04:54]} 8. O-O
{[%clk 0:04:29]} 8... Nd7 {[%clk 0:04:52.2]} 9. Be3 {[%clk 0:04:25.4]} 9... Re8
{[%clk 0:04:51.4]} 10. a4 {[%clk 0:04:17.2]} 10... Nf8 {[%clk 0:04:50.5]} 11. c3
{[%clk 0:04:14.7]} 11... Be6 {[%clk 0:04:48.5]} 12. Bd3 {[%clk 0:04:12.6]} 12...
Ng6 {[%clk 0:04:47.6]} 13. Bc2 {[%clk 0:04:10]} 13... Qd7 {[%clk 0:04:45.1]} 14.
Qd3 {[%clk 0:04:06.1]} 14... f5 {[%clk 0:04:44.1]} 15. Rad1 {[%clk 0:04:03.1]}
15... Ne7 {[%clk 0:04:40.8]} 16. Ne5 {[%clk 0:04:01.2]} 16... Bxe5 {[%clk
0:04:38.4]} 17. dxe5 {[%clk 0:04:00.1]} 17... Qxd3 {[%clk 0:04:37.7]} 18. Bxd3
{[%clk 0:03:59]} 18... Nd5 {[%clk 0:04:37.2]} 19. Bd4 {[%clk 0:03:53.5]} 19...
b6 {[%clk 0:04:21.9]} 20. a5 {[%clk 0:03:46]} 20... c5 {[%clk 0:04:13.4]} 21.
Be3 {[%clk 0:03:42.4]} 21... Nxe3 {[%clk 0:04:05.5]} 22. fxe3 {[%clk 0:03:41.4]}
22... bxa5 {[%clk 0:04:03]} 23. Bxf5 {[%clk 0:03:36.7]} 23... Rab8 {[%clk
0:04:00.1]} 24. Bxe6 {[%clk 0:03:30.3]} 24... Rxe6 {[%clk 0:03:58.8]} 25. Rd5
{[%clk 0:03:19.8]} 25... h6 {[%clk 0:03:53.4]} 26. Rxc5 {[%clk 0:03:17.8]} 26...
Rxb2 {[%clk 0:03:52.4]} 27. Rxa5 {[%clk 0:03:16.2]} 27... Rb7 {[%clk 0:03:38]}
28. Rd5 {[%clk 0:03:11.3]} 28... Rc7 {[%clk 0:03:35.2]} 29. Rc1 {[%clk
0:03:07.2]} 29... Rec6 {[%clk 0:03:34]} 30. Rd3 {[%clk 0:03:05.6]} 30... Kh7
{[%clk 0:03:31.7]} 31. Kf2 {[%clk 0:03:03.1]} 31... Kg6 {[%clk 0:03:30.7]} 32.
Kf3 {[%clk 0:03:02]} 32... Kf5 {[%clk 0:03:29.9]} 33. e4+ {[%clk 0:03:00.3]}
33... Kxe5 {[%clk 0:03:28.9]} 34. Rd5+ {[%clk 0:02:59]} 34... Ke6 {[%clk
0:03:28.1]} 35. Rd3 {[%clk 0:02:55.9]} 35... a5 {[%clk 0:03:26.8]} 36. Kf4
{[%clk 0:02:52.4]} 36... Rc4 {[%clk 0:03:23.7]} 37. g3 {[%clk 0:02:48]} 37... f5
{[%clk 0:03:19.2]} 38. Re3 {[%clk 0:02:44.5]} 38... g5+ {[%clk 0:03:17.2]} 39.
Kf3 {[%clk 0:02:42.5]} 39... fxe4+ {[%clk 0:03:11.5]} 40. Rxe4+ {[%clk
0:02:41.3]} 40... Rxe4 {[%clk 0:03:09.6]} 41. Kxe4 {[%clk 0:02:40.3]} 41... a4
{[%clk 0:03:09]} 42. c4 {[%clk 0:02:38.1]} 42... Kd6 {[%clk 0:03:07]} 43. Kd4
{[%clk 0:02:36.3]} 43... a3 {[%clk 0:03:03.9]} 44. Ra1 {[%clk 0:02:34.3]} 44...
Ra7 {[%clk 0:03:01.8]} 45. Kc3 {[%clk 0:02:31.1]} 45... Kc5 {[%clk 0:03:00.7]}
46. Kb3 {[%clk 0:02:29.8]} 46... a2 {[%clk 0:03:00]} 47. Kc3 {[%clk 0:02:25.9]}
47... g4 {[%clk 0:02:58.6]} 48. Kb3 {[%clk 0:02:23.7]} 48... h5 {[%clk
0:02:51.5]} 49. Kc3 {[%clk 0:02:21.8]} 49... Rf7 {[%clk 0:02:39.7]} 50. Rxa2
{[%clk 0:02:18.6]} 50... Rf3+ {[%clk 0:02:39.3]} 51. Kb2 {[%clk 0:02:14.9]}
51... Rf2+ {[%clk 0:02:38.4]} 52. Kb3 {[%clk 0:02:13.8]} 52... Rxa2 {[%clk
0:02:38]} 53. Kxa2 {[%clk 0:02:13.1]} 53... Kxc4 {[%clk 0:02:37.9]} 54. Kb2
{[%clk 0:02:09.4]} 54... Kd3 {[%clk 0:02:37.5]} 55. Kb3 {[%clk 0:02:06.9]} 55...
Ke2 {[%clk 0:02:37.1]} 56. Kc4 {[%clk 0:02:06]} 56... Kf2 {[%clk 0:02:36.8]} 57.
Kd4 {[%clk 0:02:05.2]} 57... Kg2 {[%clk 0:02:36.5]} 58. Ke5 {[%clk 0:02:04.3]}
58... Kxh2 {[%clk 0:02:36.2]} 59. Kf4 {[%clk 0:02:03.4]} 59... Kh3 {[%clk
0:02:35.4]} 60. Kg5 {[%clk 0:02:02.4]} 60... Kxg3 {[%clk 0:02:35.1]} 61. Kxh5
{[%clk 0:02:01.8]} 61... Kf4 {[%clk 0:02:34.8]} 62. Kg6 {[%clk 0:02:00.5]} 62...
g3 {[%clk 0:02:34]} 0-1

[Event "Live Chess"]
[Site "Chess.com"]
[Date "2023.05.21"]
[Round "-"]
[White "defenderalist"]
[Black "Tilbs_12"]
[Result "0-1"]
[WhiteElo "1626"]
[BlackElo "1568"]
[TimeControl "300"]
[EndTime "0:57:41 PDT"]
[Termination "Tilbs_12 won on time"]

1. e4 {[%clk 0:04:58.4]} 1... c6 {[%clk 0:04:58.3]} 2. Nf3 {[%clk 0:04:55.2]}
2... d5 {[%clk 0:04:57.4]} 3. exd5 {[%clk 0:04:54.2]} 3... cxd5 {[%clk
0:04:56.8]} 4. d4 {[%clk 0:04:53.4]} 4... Nc6 {[%clk 0:04:55.8]} 5. Nc3 {[%clk
0:04:51.8]} 5... Bg4 {[%clk 0:04:54.4]} 6. Be2 {[%clk 0:04:50.5]} 6... Nf6
{[%clk 0:04:53.7]} 7. h3 {[%clk 0:04:49.3]} 7... Bh5 {[%clk 0:04:52.3]} 8. g4
{[%clk 0:04:47.4]} 8... Bg6 {[%clk 0:04:51.2]} 9. Be3 {[%clk 0:04:41.1]} 9... e6
{[%clk 0:04:49.6]} 10. Qd2 {[%clk 0:04:39.7]} 10... a6 {[%clk 0:04:45.4]} 11.
Ne5 {[%clk 0:04:37.2]} 11... Nxe5 {[%clk 0:04:33.1]} 12. dxe5 {[%clk 0:04:35.8]}
12... Nd7 {[%clk 0:04:30.5]} 13. f4 {[%clk 0:04:16.1]} 13... Bc5 {[%clk
0:04:23.2]} 14. O-O-O {[%clk 0:03:57.7]} 14... Bxe3 {[%clk 0:04:15.2]} 15. Qxe3
{[%clk 0:03:54.9]} 15... b5 {[%clk 0:04:11.9]} 16. Bd3 {[%clk 0:03:44.6]} 16...
Bxd3 {[%clk 0:04:08]} 17. Qxd3 {[%clk 0:03:35.7]} 17... Rc8 {[%clk 0:04:04.3]}
18. Kb1 {[%clk 0:03:32.2]} 18... Qc7 {[%clk 0:03:48.4]} 19. f5 {[%clk
0:03:16.3]} 19... O-O {[%clk 0:03:35]} 20. f6 {[%clk 0:03:13.8]} 20... Nxe5
{[%clk 0:03:27.9]} 21. Qe2 {[%clk 0:02:57.1]} 21... Ng6 {[%clk 0:03:22.8]} 22.
fxg7 {[%clk 0:02:55.2]} 22... Kxg7 {[%clk 0:03:16.9]} 23. h4 {[%clk 0:02:50.3]}
23... Qe5 {[%clk 0:03:15]} 24. h5 {[%clk 0:02:45.7]} 24... Qxe2 {[%clk 0:03:09]}
25. Nxe2 {[%clk 0:02:44.4]} 25... Ne5 {[%clk 0:03:01.8]} 26. Rdg1 {[%clk
0:02:36.8]} 26... f6 {[%clk 0:02:51.9]} 27. g5 {[%clk 0:02:34]} 27... fxg5
{[%clk 0:02:34.5]} 28. Rxg5+ {[%clk 0:02:32.3]} 28... Kf6 {[%clk 0:02:26.6]} 29.
Rg3 {[%clk 0:02:22.1]} 29... Ke7 {[%clk 0:02:23.4]} 30. a3 {[%clk 0:02:20.6]}
30... Rg8 {[%clk 0:02:15.8]} 31. Rhg1 {[%clk 0:02:03]} 31... Rxg3 {[%clk
0:02:10.2]} 32. Rxg3 {[%clk 0:02:01.6]} 32... Rf8 {[%clk 0:02:09.5]} 33. Nd4
{[%clk 0:01:59.8]} 33... Kd6 {[%clk 0:01:48.4]} 34. Rg7 {[%clk 0:01:49.4]} 34...
Rf7 {[%clk 0:01:40.7]} 35. h6 {[%clk 0:01:35.7]} 35... Ke7 {[%clk 0:01:33.8]}
36. c3 {[%clk 0:01:24.2]} 36... Nd7 {[%clk 0:01:19.3]} 37. Nc6+ {[%clk
0:01:08.1]} 37... Kf8 {[%clk 0:01:14.9]} 38. Rg2 {[%clk 0:00:53.9]} 38... Rf6
{[%clk 0:00:51.8]} 39. Rh2 {[%clk 0:00:52.3]} 39... Rg6 {[%clk 0:00:48.8]} 40.
Kc2 {[%clk 0:00:49.4]} 40... Rg5 {[%clk 0:00:46.1]} 41. Kd3 {[%clk 0:00:43.4]}
41... Ne5+ {[%clk 0:00:44.8]} 42. Nxe5 {[%clk 0:00:39.2]} 42... Rxe5 {[%clk
0:00:44.7]} 43. Kd4 {[%clk 0:00:35.2]} 43... Rf5 {[%clk 0:00:38.7]} 44. Kc5
{[%clk 0:00:32.5]} 44... Rf7 {[%clk 0:00:32.5]} 45. Kd6 {[%clk 0:00:30.7]} 45...
Re7 {[%clk 0:00:24.6]} 46. Rf2+ {[%clk 0:00:26.1]} 46... Ke8 {[%clk 0:00:23.7]}
47. Rf6 {[%clk 0:00:23.3]} 47... e5 {[%clk 0:00:22.5]} 48. Kxd5 {[%clk
0:00:19.7]} 48... e4 {[%clk 0:00:21.4]} 49. Rxa6 {[%clk 0:00:14.8]} 49... e3
{[%clk 0:00:19.8]} 50. Ra8+ {[%clk 0:00:13.8]} 50... Kf7 {[%clk 0:00:19]} 51.
Kc5 {[%clk 0:00:06.2]} 51... e2 {[%clk 0:00:18]} 52. Kxb5 {[%clk 0:00:06.1]}
52... e1=Q {[%clk 0:00:16.7]} 53. c4 {[%clk 0:00:05]} 53... Qe2 {[%clk
0:00:14.8]} 54. b4 {[%clk 0:00:03.9]} 54... Qe5+ {[%clk 0:00:13.1]} 55. c5
{[%clk 0:00:02.9]} 55... Qe2+ {[%clk 0:00:11.7]} 56. Ka4 {[%clk 0:00:01.9]}
56... Qe6 {[%clk 0:00:10.3]} 57. Ra5 {[%clk 0:00:00.7]} 57... Qc6+ {[%clk
0:00:08.6]} 0-1

[Event "Live Chess"]
[Site "Chess.com"]
[Date "2023.05.21"]
[Round "-"]
[White "SiDebanks"]
[Black "Denz14"]
[Result "0-1"]
[WhiteElo "1342"]
[BlackElo "1036"]
[TimeControl "300"]
[EndTime "0:57:44 PDT"]
[Termination "Denz14 won by resignation"]

1. d4 {[%clk 0:04:58.5]} 1... d5 {[%clk 0:04:53.3]} 2. Nc3 {[%clk 0:04:57.3]}
2... e6 {[%clk 0:04:51.7]} 3. Bf4 {[%clk 0:04:55.8]} 3... Bb4 {[%clk 0:04:47.8]}
4. e3 {[%clk 0:04:53.5]} 4... Nf6 {[%clk 0:04:35.5]} 5. Bd3 {[%clk 0:04:47.5]}
5... Ne4 {[%clk 0:04:33.2]} 6. Bxe4 {[%clk 0:04:36.5]} 6... Bxc3+ {[%clk
0:04:29]} 7. bxc3 {[%clk 0:04:31.6]} 7... dxe4 {[%clk 0:04:28]} 8. Qg4 {[%clk
0:04:25.2]} 8... O-O {[%clk 0:04:24.9]} 9. Bh6 {[%clk 0:04:22.9]} 9... Qf6
{[%clk 0:04:22.1]} 10. Bg5 {[%clk 0:03:54.1]} 10... Qg6 {[%clk 0:04:15.3]} 11.
Qf4 {[%clk 0:03:10.3]} 11... f6 {[%clk 0:03:57.8]} 12. Qxc7 {[%clk 0:02:01.6]}
12... fxg5 {[%clk 0:03:46.8]} 13. Ne2 {[%clk 0:01:51.8]} 13... Qf7 {[%clk
0:03:43.5]} 14. O-O {[%clk 0:01:48.6]} 14... Qxc7 {[%clk 0:03:39.7]} 0-1

[Event "Live Chess"]
[Site "Chess.com"]
[Date "2023.05.21"]
[Round "-"]
[White "MarkLim1"]
[Black "swingrumbacha"]
[Result "0-1"]
[WhiteElo "1693"]
[BlackElo "2426"]
[TimeControl "300"]
[EndTime "0:57:45 PDT"]
[Termination "swingrumbacha won by resignation"]

1. d4 {[%clk 0:04:58.9]} 1... d5 {[%clk 0:04:53.2]} 2. Nf3 {[%clk 0:04:57.9]}
2... Nf6 {[%clk 0:04:50]} 3. c4 {[%clk 0:04:57.2]} 3... e6 {[%clk 0:04:47.1]} 4.
cxd5 {[%clk 0:04:56.4]} 4... exd5 {[%clk 0:04:44.3]} 5. Nc3 {[%clk 0:04:56]}
5... c6 {[%clk 0:04:41.2]} 6. Qc2 {[%clk 0:04:55.2]} 6... Be7 {[%clk 0:04:38.1]}
7. Bg5 {[%clk 0:04:54.5]} 7... g6 {[%clk 0:04:34.8]} 8. Bxf6 {[%clk 0:04:52.3]}
8... Bxf6 {[%clk 0:04:32.2]} 9. e3 {[%clk 0:04:50.2]} 9... Bf5 {[%clk
0:04:28.2]} 10. Bd3 {[%clk 0:04:49.4]} 10... Bxd3 {[%clk 0:04:24.5]} 11. Qxd3
{[%clk 0:04:48.4]} 11... O-O {[%clk 0:04:20.5]} 12. h4 {[%clk 0:04:46.6]} 12...
Bg7 {[%clk 0:04:16.2]} 13. h5 {[%clk 0:04:44.8]} 13... Nd7 {[%clk 0:04:11.9]}
14. hxg6 {[%clk 0:04:43.3]} 14... fxg6 {[%clk 0:04:08.1]} 15. Ng5 {[%clk
0:04:39.9]} 15... Qxg5 {[%clk 0:04:03.7]} 0-1